bitfinex/quotes_SOLUSD_20240926
["timestamp","ask_amount","ask_price","bid_price","bid_amount"]
[1727371232922,1.59266475,157.01,156.95,4.0]
[1727371233123,5.43837046,157.0,156.95,4.0]
[1727371233431,5.43837046,156.99,156.97,16.2164]
[1727371233623,6.367,157.06,156.97,16.2164]
[1727371233823,5.44063341,157.05,156.97,16.2164]
[1727371234029,5.44063341,157.04,156.97,16.2164]
[1727371234321,6.59102839,157.09,156.97,16.2164]
[1727371234517,11.80965931,157.07,156.97,16.2164]
[1727371234722,5.44305931,157.06,156.97,16.2164]
[1727371235022,1.59222101,157.05,156.97,16.2164]
[1727371235338,5.44305931,157.04,156.97,16.2164]
[1727371235534,1.592541,157.03,156.97,16.2164]
[1727371235839,5.56854931,157.02,156.97,16.2164]
[1727371236024,23.902374,157.03,156.97,16.2164]
[1727371236737,0.25098,157.03,156.97,16.2164]
[1727371236941,1.59250692,157.02,156.97,16.2164]
[1727371237441,23.902374,157.01,156.97,16.2164]
[1727371237825,0.12549,157.01,156.97,16.2164]
[1727371238213,1.59257255,157.01,156.97,16.2164]
[1727371239121,0.12549,157.02,156.97,16.2164]
[1727371239436,23.776884,157.04,156.97,16.2164]
[1727371239735,7.15051043,157.03,156.97,16.2164]
[1727371239943,5.55813749,157.02,156.97,16.2164]
[1727371240163,6.3675,157.05,156.97,16.2164]
[1727371240530,5.55822993,157.01,156.97,16.2164]
[1727371240729,5.55822993,157.04,156.97,16.2164]
[1727371241034,5.56001001,157.03,156.97,16.2164]
[1727371241231,24.027864,157.06,156.97,16.2164]
[1727371241533,0.12549,157.04,156.97,16.2164]
[1727371241730,7.15357515,157.03,156.97,16.2164]
[1727371241939,1.59232024,157.03,156.97,16.2164]
[1727371242143,5.56070402,157.02,156.97,16.2164]
[1727371242351,1.59238251,157.01,156.97,16.2164]
[1727371242643,1.71787232,157.04,156.97,16.2164]
[1727371242849,5.56075856,157.03,156.97,16.2164]
[1727371243148,7.15314284,157.02,156.97,16.2164]
[1727371243321,1.59238428,157.02,156.97,16.2164]
[1727371243518,23.902374,157.04,156.97,16.2164]
[1727371243717,5.56220792,157.03,156.97,16.2164]
[1727371243919,5.56220792,157.02,156.97,16.2164]
[1727371244131,0.12549,157.04,156.97,16.2164]
[1727371244132,1.59231768,157.04,156.97,16.2164]
[1727371244324,5.56129339,157.03,156.97,16.2164]
[1727371244534,0.12549,157.05,156.97,16.2164]
[1727371244719,5.56167447,157.04,157.0,19.46822983]
[1727371244938,6.3657,157.1,157.01,22.4882]
[1727371245140,5.56247106,157.09,157.01,22.4882]
[1727371245353,0.2563091,157.11,157.02,19.46822983]
[1727371245354,5.56247106,157.08,157.02,19.46822983]
[1727371245535,5.56247106,157.07,157.02,19.46822983]
[1727371245725,0.2563091,157.11,157.02,19.46822983]
[1727371246043,5.56274338,157.1,157.02,19.46822983]
[1727371246236,5.56274338,157.09,157.02,19.46822983]
[1727371246439,5.56274338,157.08,157.02,19.46822983]
[1727371246650,0.2563091,157.11,157.02,19.46822983]
[1727371246841,5.56421625,157.1,157.02,19.46822983]
[1727371247041,7.15587003,157.09,157.02,19.46822983]
[1727371247251,5.56421625,157.09,157.02,19.46822983]
[1727371247630,5.56240405,157.08,157.02,19.46822983]
[1727371248022,1.84796323,157.11,157.02,19.46822983]
[1727371248224,5.56146553,157.1,157.02,19.46822983]
[1727371248449,7.15311534,157.09,157.02,19.46822983]
[1727371248659,5.56146553,157.09,157.02,19.46822983]
[1727371248836,5.56146553,157.08,157.02,19.46822983]
[1727371249037,1.84795933,157.11,157.02,19.46822983]
[1727371249370,5.5600417,157.1,157.02,19.46822983]
[1727371249659,5.5600417,157.09,157.02,19.46822983]
[1727371249865,24.0331931,157.11,157.02,19.46822983]
[1727371250163,5.56054565,157.1,157.04,19.46822983]
[1727371250347,7.15212971,157.09,157.02,39.46822983]
[1727371250552,1.59159929,157.08,157.01,22.4882]
[1727371250787,23.902374,157.1,157.01,22.4882]
[1727371250963,1.59177228,157.09,157.01,22.4882]
[1727371251162,7.14992763,157.09,157.01,22.4882]
[1727371251343,5.68364535,157.08,157.01,22.4882]
[1727371251656,7.15011699,157.07,157.01,22.4882]
[1727371251846,23.902374,157.08,157.01,22.4882]
[1727371252041,5.55687894,157.07,157.01,22.4882]
[1727371252267,1.5919625,157.06,157.01,22.4882]
[1727371252438,23.902374,157.08,157.01,22.4882]
[1727371252639,5.55826705,157.07,157.01,22.4882]
[1727371252859,23.902374,157.08,157.01,22.4882]
[1727371253162,5.55817391,157.07,157.01,22.4882]
[1727371253366,23.902374,157.08,157.01,22.4882]
[1727371253554,5.55774352,157.07,157.01,22.4882]
[1727371253767,23.902374,157.08,157.01,22.4882]
[1727371253939,5.55778155,157.07,157.01,22.4882]
[1727371254138,23.902374,157.08,157.01,22.4882]
[1727371254563,5.55783203,157.07,157.01,22.4882]
[1727371254749,23.902374,157.08,157.01,22.4882]
[1727371256456,0.2563091,157.11,157.01,22.4882]
[1727371256757,5.55569337,157.1,157.01,41.95642983]
[1727371256966,5.55569337,157.09,157.01,41.95642983]
[1727371257161,1.84792252,157.11,157.01,41.95642983]
[1727371257346,5.55451628,157.1,157.01,41.95642983]
[1727371257551,5.55451628,157.09,157.03,19.46822983]
[1727371257762,0.2563091,157.11,157.03,19.46822983]
[1727371257947,5.55612126,157.1,157.04,15.8915]
[1727371258150,0.2563091,157.11,157.05,6.5967]
[1727371258644,0.2563091,157.11,157.07,19.46822983]
[1727371258945,0.2563091,157.11,157.08,15.8915]
[1727371261643,6.3655,157.1,157.05,6.5967]
[1727371262047,1.59174056,157.09,157.05,6.5967]
[1727371262372,24.027864,157.1,157.05,6.5967]
[1727371262664,24.027864,157.1,157.04,15.8574]
[1727371263067,30.393264,157.1,157.04,15.8574]
[1727371263259,1.59183691,157.09,157.04,15.8574]
[1727371263571,0.12549,157.08,157.04,15.8574]
[1727371264453,0.12549,157.09,157.04,15.8574]
[1727371264652,6.6213091,157.11,157.04,15.8574]
[1727371264854,0.12549,157.09,157.04,15.8574]
[1727371265051,6.3662,157.08,157.04,15.8574]
[1727371265356,0.3817991,157.11,157.01,6.0016]
[1727371265357,0.12549,157.06,157.01,6.0016]
[1727371266583,23.902374,157.07,157.01,6.0016]
[1727371267358,0.12549,157.07,157.01,6.0016]
[1727371267782,0.12549,157.1,157.01,6.0016]
[1727371267989,0.3817991,157.11,157.01,6.0016]
[1727371268357,5.54607925,157.1,157.01,25.46982983]
[1727371268662,0.2563091,157.11,157.01,25.46982983]
[1727371269377,1.5916725,157.1,157.01,6.0016]
[1727371269878,0.2563091,157.11,157.01,25.46982983]
[1727371270782,1.84796038,157.11,157.01,6.0016]
[1727371270954,5.54596847,157.1,157.01,6.0016]
[1727371271164,1.59166275,157.09,157.01,6.0016]
[1727371271796,30.393264,157.1,157.01,6.0016]
[1727371272496,30.393964,157.08,157.01,6.0016]
[1727371273494,0.12549,157.06,157.01,6.0016]
[1727371273666,1.59207778,157.05,157.01,6.0016]
[1727371273861,0.12549,157.06,157.01,6.0016]
[1727371274102,30.393964,157.08,157.01,6.0016]
[1727371274580,0.12549,157.08,157.01,6.0016]
[1727371274887,1.59207766,157.07,157.01,6.0016]
[1727371275091,0.12549,157.06,157.01,6.0016]
[1727371276788,6.3658,157.09,157.01,6.0016]
[1727371277084,5.55603719,157.08,157.01,6.0016]
[1727371277286,5.55603719,157.07,157.01,6.0016]
[1727371277487,0.2563091,157.11,157.01,6.0016]
[1727371277661,5.55830556,157.1,157.02,19.46822983]
[1727371277895,0.2563091,157.11,157.03,16.0727]
[1727371278058,5.55834875,157.09,157.03,16.0727]
[1727371278467,5.55834875,157.1,157.03,16.0727]
[1727371278671,5.55834875,157.09,157.03,16.0727]
[1727371278873,5.55834875,157.08,157.03,16.0727]
[1727371279190,0.2563091,157.11,157.03,16.0727]
[1727371279390,5.56051586,157.1,157.03,16.0727]
[1727371279589,5.56051586,157.09,157.05,6.1443]
[1727371279792,0.2563091,157.11,157.05,6.1443]
[1727371279987,5.56151062,157.1,157.05,6.1443]
[1727371280289,0.2563091,157.11,157.05,6.1443]
[1727371280495,5.56227369,157.1,157.05,6.1443]
[1727371280795,0.2563091,157.11,157.05,6.1443]
[1727371281166,5.56219183,157.1,157.05,6.1443]
[1727371282176,5.56154042,157.09,157.05,6.1443]
[1727371283471,5.56219183,157.1,157.05,6.1443]
[1727371283970,5.52711047,157.09,157.05,6.1443]
[1727371284172,5.56219183,157.1,157.05,6.1443]
[1727371284372,5.52786649,157.09,157.05,6.1443]
[1727371284770,5.56219183,157.1,157.05,6.1443]
[1727371284972,5.52752448,157.09,157.05,6.1443]
[1727371285175,5.56219183,157.1,157.05,6.1443]
[1727371285486,5.52936389,157.09,157.05,6.1443]
[1727371285689,5.56219183,157.1,157.05,6.1443]
[1727371285889,5.52852323,157.09,157.05,6.1443]
[1727371286194,0.2563091,157.11,157.05,6.1443]
[1727371286386,5.53021277,157.1,157.05,6.1443]
[1727371286585,5.53021277,157.09,157.05,6.1443]
[1727371286899,0.2563091,157.11,157.05,6.1443]
[1727371287086,5.52932249,157.1,157.05,6.1443]
[1727371287294,7.12077002,157.09,157.05,6.1443]
[1727371287599,0.2563091,157.11,157.05,6.1443]
[1727371287600,5.52932249,157.08,157.05,6.1443]
[1727371287776,5.52932249,157.07,157.03,16.0727]
[1727371287986,0.12549,157.1,157.03,16.0727]
[1727371288186,5.5270317,157.09,157.03,16.0727]
[1727371288392,5.5270317,157.08,157.03,16.0727]
[1727371288588,5.5270317,157.07,157.03,16.0727]
[1727371288905,5.5270317,157.06,157.03,16.0727]
[1727371289138,8.08269203,157.1,157.03,16.0727]
[1727371289306,6.3659,157.09,157.03,16.0727]
[1727371289602,1.59184239,157.08,157.03,16.0727]
[1727371289805,1.59184342,157.07,157.03,16.0727]
[1727371289980,1.59184342,157.07,157.01,6.1443]
[1727371289981,0.12549,157.06,157.01,6.1443]
[1727371290176,5.52838504,157.05,157.01,6.1443]
[1727371290396,5.52838504,157.04,157.01,6.1443]
[1727371290600,7.12052377,157.03,156.99,15.2936]
[1727371290930,1.59226705,157.05,156.99,15.2936]
[1727371291088,5.52862434,157.04,156.99,15.2936]
[1727371291416,7.12088418,157.03,156.99,15.2936]
[1727371291706,5.52862434,157.02,156.99,15.2936]
[1727371292000,5.52862434,157.01,156.99,15.2936]
[1727371292209,0.12549,157.06,156.99,15.2936]
[1727371292389,5.52706666,157.05,156.99,15.2936]
[1727371292729,5.52706666,157.04,156.99,15.2936]
[1727371293289,5.52706666,157.03,156.99,15.2936]
[1727371293488,5.52706666,157.02,156.99,15.2936]
[1727371293803,0.12549,157.06,156.99,15.2936]
[1727371294008,5.5242106,157.05,156.99,15.2936]
[1727371294199,7.11638628,157.04,156.99,15.2936]
[1727371294402,5.5242106,157.03,156.99,15.2936]
[1727371294583,6.49249,157.06,156.99,15.2936]
[1727371294584,7.116387,157.02,156.99,15.2936]
[1727371294785,5.5242106,157.01,156.99,15.2936]
[1727371294980,5.5242106,157.0,156.99,15.2936]
[1727371295290,0.12549,157.04,156.99,15.2936]
[1727371295490,5.51922425,157.03,156.99,15.2936]
[1727371295695,5.51922425,157.02,156.99,15.2936]
[1727371296008,5.51922425,157.01,156.99,15.2936]
[1727371296314,6.3675,157.05,156.99,15.2936]
[1727371296315,0.12549,157.03,156.99,15.2936]
[1727371296688,5.52035002,157.02,156.99,15.2936]
[1727371296888,5.52035002,157.01,156.99,15.2936]
[1727371297098,0.12549,157.03,156.99,15.2936]
[1727371297298,5.5185601,157.02,156.99,15.2936]
[1727371297496,0.12549,157.03,156.99,15.2936]
[1727371297696,5.51878521,157.02,156.97,6.4801]
[1727371297885,7.11156358,157.01,156.97,6.4801]
[1727371298086,1.59245746,157.01,156.97,6.4801]
[1727371298587,6.49369,157.03,156.97,6.4801]
[1727371298810,7.10663598,157.02,156.97,6.4801]
[1727371299012,5.51411411,157.01,156.97,6.4801]
[1727371299191,1.59252187,157.02,156.97,6.4801]
[1727371299391,5.51248161,157.01,156.97,6.4801]
[1727371299593,6.49369,157.03,156.97,6.4801]
[1727371299796,0.12549,157.01,156.97,6.4801]
[1727371300323,6.3682,157.03,156.97,6.4801]
[1727371300324,0.12549,157.03,156.97,6.4801]
[1727371300626,5.50984471,157.02,156.97,6.4801]
[1727371300802,1.59240446,157.01,156.97,6.4801]
[1727371301002,1.71789446,157.03,156.97,6.4801]
[1727371301192,5.50883793,157.02,156.97,6.4801]
[1727371301487,0.12549,157.03,156.97,6.4801]
[1727371301684,5.50853309,157.02,156.97,6.4801]
[1727371301890,0.25098,157.04,156.97,6.4801]
[1727371302114,5.50892096,157.03,156.97,6.4801]
[1727371302324,5.50892096,157.02,156.97,6.4801]
[1727371302486,0.25098,157.04,156.97,6.4801]
[1727371302692,5.5071888,157.03,156.97,6.4801]
[1727371302896,5.5071888,157.02,156.97,6.4801]
[1727371303110,0.25098,157.04,156.97,6.4801]
[1727371303314,5.50494761,157.03,156.97,6.4801]
[1727371303612,5.50494761,157.02,156.97,6.4801]
[1727371303816,0.25098,157.04,156.97,6.4801]
[1727371303985,5.50575219,157.03,156.97,6.4801]
[1727371304186,5.50575219,157.02,156.97,6.4801]
[1727371304395,0.25098,157.04,156.97,6.4801]
[1727371304718,5.50638033,157.03,156.97,6.4801]
[1727371304887,5.50638033,157.02,156.97,6.4801]
[1727371305093,0.25098,157.04,156.97,6.4801]
[1727371305390,5.50773817,157.03,156.97,6.4801]
[1727371305586,5.50773817,157.02,156.97,6.4801]
[1727371305820,0.25098,157.04,156.97,6.4801]
[1727371306128,5.50923159,157.03,156.97,6.4801]
[1727371306297,5.50923159,157.02,156.97,6.4801]
[1727371306507,6.3666,157.07,156.98,23.776884]
[1727371306995,5.51311585,157.06,156.98,23.776884]
[1727371307194,5.51311585,157.05,156.98,23.776884]
[1727371307400,7.10528191,157.04,156.98,23.776884]
[1727371307597,7.10528282,157.03,156.97,6.4801]
[1727371307800,7.10680313,157.02,156.97,6.4801]
[1727371308001,0.12549,157.04,156.97,6.4801]
[1727371308202,5.51442556,157.03,156.97,6.4801]
[1727371308402,5.51442556,157.02,156.97,6.4801]
[1727371308698,1.71777552,157.04,156.97,6.4801]
[1727371309018,5.51208171,157.03,156.97,6.4801]
[1727371309201,5.51208171,157.02,156.97,6.4801]
[1727371309404,0.12549,157.04,156.97,6.4801]
[1727371309608,5.50940676,157.03,156.97,6.4801]
[1727371310007,0.12549,157.04,156.97,6.4801]
[1727371310205,5.50942113,157.02,156.97,6.4801]
[1727371310403,1.71778431,157.04,156.97,6.4801]
[1727371310620,5.50957993,157.03,156.97,6.4801]
[1727371310793,5.50957993,157.02,156.98,23.776884]
[1727371310992,1.59229397,157.04,156.98,23.776884]
[1727371311222,5.50962248,157.03,156.98,23.776884]
[1727371311424,5.51179392,157.02,156.98,23.776884]
[1727371311602,1.59214198,157.06,156.98,23.776884]
[1727371311603,8.20701899,157.12,156.98,23.776884]
[1727371311801,5.51191457,157.07,156.98,23.776884]
[1727371312121,12.91804902,157.08,156.98,23.776884]
[1727371312122,5.51191457,157.06,156.98,23.776884]
[1727371312322,5.51191457,157.05,156.98,23.776884]
[1727371312521,5.51191457,157.04,156.98,23.776884]
[1727371312727,5.51191457,157.03,156.98,23.776884]
[1727371313025,0.12549,157.07,156.98,23.776884]
[1727371313231,5.51163205,157.06,156.98,23.776884]
[1727371313438,5.51163205,157.05,156.98,23.776884]
[1727371313608,5.51163205,157.04,156.98,23.776884]
[1727371313933,5.51163205,157.03,156.98,23.776884]
[1727371314100,1.59198443,157.07,156.98,23.776884]
[1727371314301,5.51414833,157.06,156.98,23.776884]
[1727371314523,5.51414833,157.05,156.98,23.776884]
[1727371314701,5.51414833,157.04,156.98,23.776884]
[1727371314912,5.51414833,157.03,156.98,23.776884]
[1727371315108,1.59215179,157.04,156.98,23.776884]
[1727371315426,5.51385071,157.03,156.98,23.776884]
[1727371315630,1.59215179,157.04,156.98,23.776884]
[1727371315803,5.51302169,157.03,156.97,6.4801]
[1727371316009,1.59226284,157.07,156.97,6.4801]
[1727371316203,0.12549,157.03,156.97,6.4801]
[1727371316458,6.3675,157.05,156.97,6.4801]
[1727371316924,0.12549,157.03,156.97,6.4801]
[1727371319042,5.51358,157.02,156.97,6.4801]
[1727371319219,0.12549,157.03,156.97,6.4801]
[1727371319420,5.5140379,157.02,156.97,6.4801]
[1727371319724,0.12549,157.03,156.97,6.4801]
[1727371319922,5.515305,157.02,156.97,6.4801]
[1727371320116,0.12549,157.03,156.97,6.4801]
[1727371320323,5.51764577,157.02,156.97,6.4801]
[1727371320529,1.59230595,157.01,156.97,6.4801]
[1727371320839,0.25098,157.04,156.97,6.4801]
[1727371321142,0.12549,157.02,156.97,6.4801]
[1727371321437,6.3686,157.02,156.97,6.4801]
[1727371321742,7.11303797,157.01,156.97,6.4801]
[1727371321918,1.59255337,157.01,156.97,6.4801]
[1727371322119,1.59258313,157.0,156.97,6.4801]
[1727371322435,1.71807165,157.01,156.97,6.4801]
[1727371322630,5.52064921,157.0,156.97,6.4801]
[1727371322835,6.3678,157.04,156.97,6.4801]
[1727371323016,5.64616861,157.03,156.97,6.4801]
[1727371323207,5.52067861,157.02,156.97,6.4801]
[1727371324333,1.71791881,157.01,156.97,6.4801]
[1727371324636,5.52067861,157.0,156.95,19.2936]
[1727371324840,1.71791881,157.01,156.95,19.2936]
[1727371324841,1.59260553,156.99,156.95,19.2936]
[1727371325220,0.12549,157.01,156.95,19.2936]
[1727371325420,5.52057757,157.0,156.95,19.2936]
[1727371325643,0.12549,157.02,156.95,19.2936]
[1727371325938,5.5207546,157.01,156.95,19.2936]
[1727371326183,7.11336377,157.0,156.95,19.2936]
[1727371326322,6.49409,157.02,156.95,19.2936]
[1727371326514,1.59262116,157.01,156.95,19.2936]
[1727371326822,5.5219305,157.01,156.95,19.2936]
[1727371327136,5.5219305,157.0,156.95,19.2936]
[1727371327341,1.59250689,157.0,156.95,19.2936]
[1727371327640,1.59262125,156.99,156.95,19.2936]
[1727371327841,0.12549,157.0,156.95,19.2936]
[1727371328632,5.52230849,156.99,156.95,19.2936]
[1727371328818,30.395764,157.04,156.95,19.2936]
[1727371329147,0.12549,157.02,156.95,19.2936]
[1727371329324,5.52256162,157.01,156.95,19.2936]
[1727371329643,5.52256162,157.0,156.95,19.2936]
[1727371329828,1.5925978,156.99,156.95,19.2936]
[1727371330025,5.47978885,156.98,156.95,19.2936]
[1727371330218,1.5928001,156.97,156.95,19.2936]
[1727371330412,0.12549,157.0,156.95,19.2936]
[1727371330612,5.48091139,156.99,156.95,19.2936]
[1727371330825,7.07371122,156.98,156.95,19.2936]
[1727371331018,1.59279983,156.98,156.95,19.2936]
[1727371331232,0.25098,157.01,156.95,19.2936]
[1727371331447,5.48358965,157.0,156.95,19.2936]
[1727371331741,5.48358965,156.99,156.95,19.2936]
[1727371331945,5.48358965,156.98,156.95,19.2936]
[1727371332141,6.3688,157.02,156.95,19.2936]
[1727371332446,5.48354179,157.01,156.95,19.2936]
[1727371332650,13.44567802,157.0,156.95,19.2936]
[1727371332939,5.48354179,156.99,156.95,19.2936]
[1727371333136,5.48354179,156.98,156.95,19.2936]
[1727371333443,5.48354179,156.97,156.95,19.2936]
[1727371333634,5.48354179,156.97,156.95,4.0]
[1727371333818,5.4863694,156.96,156.95,4.0]
[1727371336649,5.48416779,156.96,156.95,4.0]
[1727371338327,5.51080366,156.96,156.95,4.0]
[1727371339949,6.3698,156.99,156.95,4.0]
[1727371340258,5.50915654,156.96,156.95,4.0]
[1727371340436,7.10219176,156.96,156.95,4.0]
[1727371340639,13.59868176,156.96,156.95,4.0]
[1727371341027,13.72417176,156.96,156.95,4.0]
[1727371341353,37.50105576,156.96,156.95,4.0]
[1727371342050,5.63464654,156.96,156.95,4.0]
[1727371342271,5.76013654,156.96,156.95,4.0]
[1727371342551,5.75761469,156.96,156.95,4.0]
[1727371342757,5.50663469,156.96,156.95,4.0]
[1727371344226,6.3674,157.05,156.96,22.336]
[1727371344536,5.50854902,157.04,156.96,22.336]
[1727371344949,7.10130397,157.03,156.96,22.336]
[1727371345342,5.5089092,157.02,156.96,22.336]
[1727371345637,1.592396,157.01,156.96,22.336]
[1727371345837,5.43001118,157.0,156.96,22.336]
[1727371346165,0.12549,157.03,156.96,22.336]
[1727371346458,5.42979006,157.02,156.96,22.336]
[1727371346643,5.42979006,157.01,156.96,22.336]
[1727371346956,5.42979006,157.0,156.96,22.336]
[1727371347253,12.90962538,157.07,156.97,19.51232552]
[1727371347468,5.42930275,157.06,156.97,19.51232552]
[1727371347648,5.42930275,157.05,156.97,19.51232552]
[1727371347984,5.42930275,157.04,156.97,19.51232552]
[1727371348180,5.42976455,157.04,156.97,19.51232552]
[1727371348657,5.42976455,157.03,156.97,19.51232552]
[1727371348953,5.42976455,157.03,156.98,23.776884]
[1727371349134,6.79882942,157.11,156.99,19.51232552]
[1727371349341,5.43117579,157.1,157.02,6.5656]
[1727371349644,5.43117579,157.09,157.02,6.5656]
[1727371349842,5.43117579,157.08,157.02,6.5656]
[1727371350034,5.43117579,157.07,157.02,6.5656]
[1727371350346,0.2563091,157.11,157.02,6.5656]
[1727371350658,5.42993269,157.1,157.02,6.5656]
[1727371350863,6.6214091,157.11,157.02,6.5656]
[1727371350864,5.42993269,157.09,157.02,6.5656]
[1727371351168,5.42993269,157.08,157.02,6.5656]
[1727371351358,0.12549,157.1,157.02,6.5656]
[1727371351759,5.42969819,157.07,157.02,6.5656]
[1727371352066,0.12549,157.1,157.02,6.5656]
[1727371352636,5.42739173,157.09,157.02,6.5656]
[1727371352861,5.42739173,157.08,157.02,6.5656]
[1727371353157,5.42739173,157.07,157.02,6.5656]
[1727371353358,0.12549,157.1,157.02,6.5656]
[1727371353542,5.4253451,157.09,157.04,23.776884]
[1727371353734,5.4253451,157.09,157.03,19.51232552]
[1727371353735,0.2563091,157.11,157.05,34.80202552]
[1727371353935,5.42643712,157.1,157.08,6.5656]
[1727371354135,0.2563091,157.11,157.08,6.5656]
[1727371354362,5.4264695,157.1,157.08,6.5656]
[1727371354665,0.2563091,157.11,157.08,6.5656]
[1727371361243,0.2563091,157.11,157.05,15.2897]
[1727371364460,0.2563091,157.11,157.05,34.80202552]
[1727371364846,0.2563091,157.11,157.06,23.776884]
[1727371365038,0.2563091,157.11,157.07,19.51232552]
[1727371365561,0.2563091,157.11,157.06,23.776884]
[1727371370483,0.2563091,157.11,157.08,23.776884]
[1727371371549,0.2563091,157.11,157.06,23.776884]
[1727371372345,0.2563091,157.11,157.05,15.2897]
[1727371376270,0.2563091,157.11,157.06,12.46787915]
[1727371377864,0.2563091,157.11,157.07,12.46787915]
[1727371378875,0.2563091,157.11,157.08,12.46787915]
[1727371379078,0.2563091,157.11,157.1,12.46787915]
[1727371380462,0.2563091,157.11,157.08,12.46787915]
[1727371381476,0.2563091,157.11,157.06,23.776884]
[1727371381796,0.2563091,157.11,157.06,36.24476315]
[1727371382477,0.2563091,157.11,157.06,23.776884]
[1727371384271,6.3657,157.09,157.01,15.456]
[1727371384477,0.12549,157.09,157.01,15.456]
[1727371384716,1.71723434,157.09,157.01,15.456]
[1727371385359,0.12549,157.1,157.01,15.456]
[1727371385586,1.71719934,157.1,157.0,6.0239]
[1727371385889,0.12549,157.08,157.0,6.0239]
[1727371386088,8.08353687,157.08,156.98,19.4801669]
[1727371386463,0.12549,157.08,156.98,19.4801669]
[1727371386999,0.12549,157.08,156.99,23.776884]
[1727371387288,0.12549,157.1,156.99,23.776884]
[1727371387584,5.41437139,157.09,156.99,23.776884]
[1727371387886,5.41437139,157.08,156.99,23.776884]
[1727371388072,0.12549,157.1,156.99,23.776884]
[1727371388385,5.41451447,157.09,156.99,23.776884]
[1727371388585,5.41451447,157.08,156.99,23.776884]
[1727371388767,15.9475091,157.11,157.02,19.6056569]
[1727371388974,5.41496256,157.1,157.03,23.776884]
[1727371389287,5.41496256,157.09,157.03,23.776884]
[1727371389588,15.9475091,157.11,157.03,23.776884]
[1727371389789,5.4157378,157.1,157.03,23.776884]
[1727371389974,15.9475091,157.11,157.03,23.776884]
[1727371390176,5.41568131,157.1,157.03,23.776884]
[1727371390378,5.41937516,157.09,157.03,23.776884]
[1727371390591,15.9475091,157.11,157.04,0.12549]
[1727371390793,15.9475091,157.11,157.03,23.776884]
[1727371391384,17.53886364,157.11,157.03,23.776884]
[1727371391774,0.12549,157.1,157.01,20.0]
[1727371391971,1.59170846,157.09,156.98,19.4801669]
[1727371392172,1.59170846,157.09,156.99,20.0]
[1727371392692,0.12549,157.1,156.98,19.4801669]
[1727371392871,6.49099,157.1,156.98,19.4801669]
[1727371393496,0.12549,157.1,157.0,19.4801669]
[1727371393792,15.9475091,157.11,157.03,23.776884]
[1727371394785,15.9475091,157.11,157.0,19.4801669]
[1727371394786,1.59149949,157.1,157.0,19.4801669]
[1727371394991,1.59149949,157.1,157.01,23.776884]
[1727371395198,1.59149949,157.1,156.98,19.4801669]
[1727371395199,6.3662,157.08,156.98,19.4801669]
[1727371395487,6.61658,157.1,156.98,19.4801669]
[1727371395698,0.12549,157.08,156.98,19.4801669]
[1727371395900,5.44878531,157.07,156.98,19.4801669]
[1727371396073,15.9475091,157.11,156.97,15.456]
[1727371396074,5.44878531,157.06,157.0,19.4801669]
[1727371396270,22.3125091,157.11,157.0,19.4801669]
[1727371396484,5.45025909,157.1,157.09,6.3657]
[1727371396784,5.45025909,157.1,157.03,56.2121]
[1727371396785,0.2563091,157.11,157.1,6.3653]
[1727371396974,5.70845306,157.11,157.1,6.3653]
[1727371397175,5.70845306,157.11,157.1,30.142184]
[1727371397377,0.2563091,157.11,157.1,30.142184]
[1727371397593,0.2563091,157.2,157.14,6.3637]
[1727371399001,6.3621,157.18,157.04,20.0]
[1727371399296,15.7879,157.14,157.06,20.0]
[1727371399688,0.2563091,157.15,157.08,20.0]
[1727371401833,0.2563091,157.15,157.09,23.776884]
[1727371402192,0.2563091,157.15,157.11,23.776884]
[1727371402393,0.2563091,157.15,157.1,20.0]
[1727371403377,0.2563091,157.15,157.06,20.0]
[1727371403703,1.84750296,157.15,157.04,7.71374477]
[1727371404201,0.2563091,157.15,157.04,7.71374477]
[1727371404776,0.2563091,157.15,157.13,6.3641]
[1727371405788,0.2563091,157.15,157.04,7.71374477]
[1727371405789,0.2563091,157.15,157.06,43.776884]
[1727371405978,1.84750379,157.15,157.04,7.71374477]
[1727371406177,0.12549,157.14,157.1,6.3652]
[1727371406485,1.5913447,157.13,157.1,6.3652]
[1727371406678,0.12549,157.14,157.11,6.3649]
[1727371406893,1.716802,157.14,157.11,6.3649]
[1727371409444,0.12549,157.13,157.05,20.0]